Workbook

Sheet Лист1
G1: Приложение 2 к постановлению администрации города Усолье-Сибирское от 15.02.2024 г. № 649-па
G3: «Приложение 4 к муниципальной программе «Развитие культуры и архивного дела» на 2019-2026 годы
A5: Информация об участии муниципального образования «город Усолье-Сибирское» в государственных программах Иркутской области в рамках муниципальной программы города Усолье-Сибирское "Развитие культуры и архивного дела" на 2019-2026 годы (далее – муниципальная программа)
A7: № п/п | B7: Наименование мероприятия, подпрограммы | C7: Наименование мероприятия, подпрограммы муниципальной подпрограммы | D7: Год реализации | E7: Общий объем финансирования, руб. | F7: Федеральный бюджет | G7: Областной бюджет | H7: Иные источники финансирования, руб. | I7: Местный бюджет (софинансирование)
B8: государственной программы Иркутской области
A9: 1 | B9: Государственная программа Иркутской области «Развитие культуры» на 2019 - 2025 годы, утверждённая постановлением Правительства Иркутской области от 06.11.2018 года № 815-пп; государственная программа Иркутской области «Развитие культуры» на 2024-2030 годы, утверждённая постановлением Правительства Иркутской области от 13.11.2023 года № 1023-пп
A10: 1.1. | B10: Основное мероприятие "Капитальные ремонты объектов культуры и архивов муниципальной собственности муниципальных образований Иркутской области" Подпрограммы "Оказание финансовой поддержки муниципальным образованиям Иркутской области в сфере культуры и архивного дела" на 2019 - 2025 годы | C10: Основное мероприятие 1.6. "Капитальный ремонт большого зала и фасада МБКДУ "Дворец культуры" подпрограммы 1 "Создание единого культурного пространства и развитие архивного дела в городе Усолье-Сибирское" на 2019-2026 | D10: Итого | E10: =F10+G10+I10 -> 4,038,200.00 | F10: =SUM(F11:F16) -> 0.00 | G10: =SUM(G11:G16) -> 3,413,300.00 | H10: =SUM(H11:H16) -> 0.00 | I10: =SUM(I11:I16) -> 624,900.00
D11: 2019 | E11: =F11+G11+I11 -> 4,038,200.00 | F11: 0.00 | G11: 3,413,300.00 | H11: 0.00 | I11: 624,900.00
D12: 2020 | E12: =F12+G12+I12 -> 0.00 | F12: 0.00 | G12: 0.00 | H12: 0.00 | I12: 0.00
D13: 2021 | E13: 0.00 | F13: 0.00 | G13: 0.00 | H13: 0.00 | I13: 0.00
D14: 2022 | E14: 0.00 | F14: 0.00 | G14: 0.00 | H14: 0.00 | I14: 0.00
D15: 2023 | E15: 0.00 | F15: 0.00 | G15: 0.00 | H15: 0.00 | I15: 0.00
D16: 2024 | E16: =F16+G16+I16 -> 0.00 | F16: 0.00 | G16: 0.00 | H16: 0.00 | I16: 0.00
D17: 2025 | E17: =F17+G17+I17 -> 0.00 | F17: 0.00 | G17: 0.00 | H17: 0.00 | I17: 0.00
D18: 2026 | E18: =F18+G18+I18 -> 0.00 | F18: 0.00 | G18: 0.00 | H18: 0.00 | I18: 0.00
C19: Основное мероприятие 1.7 "Капитальный ремонт фасада МБКДУ "Дворец культуры" подпрограммы 1 "Создание единого культурного пространства и развитие архивного дела в городе Усолье-Сибирское" на 2019-2026 | D19: Итого | E19: 31,359,983.82 | F19: =SUM(F20:F25) -> 0.00 | G19: =SUM(G20:G25) -> 27,324,200.00 | H19: 0.00 | I19: 4,035,783.82
D20: 2019 | E20: 12,259,800.00 | F20: 0.00 | G20: 10,666,000.00 | H20: 0.00 | I20: 1,593,800.00
D21: 2020 | E21: 19,100,183.82 | F21: 0.00 | G21: 16,658,200.00 | H21: 0.00 | I21: 2,441,983.82
D22: 2021 | E22: 0.00 | F22: 0.00 | G22: 0.00 | H22: 0.00 | I22: 0.00
D23: 2022 | E23: 0.00 | F23: 0.00 | G23: 0.00 | H23: 0.00 | I23: 0.00
D24: 2023 | E24: 0.00 | F24: 0.00 | G24: 0.00 | H24: 0.00 | I24: 0.00
D25: 2024 | E25: 0.00 | F25: 0.00 | G25: 0.00 | H25: 0.00 | I25: 0.00
D26: 2025 | E26: =F26+G26+I26 -> 0.00 | F26: 0.00 | G26: 0.00 | H26: 0.00 | I26: 0.00
D27: 2026 | E27: =F27+G27+I27 -> 0.00 | F27: 0.00 | G27: 0.00 | H27: 0.00 | I27: 0.00
C28: Основное мероприятие 1.10. "Капитальный ремонт кровли МБКДУ "Дворец культуры" подпрограммы 1 "Создание единого культурного пространства и развитие архивного дела в городе Усолье-Сибирское" на 2019-2026 | D28: Итого | E28: =F28+G28+I28 -> 12,454,495.40 | F28: =SUM(F29:F34) -> 0.00 | G28: =SUM(G29:G34) -> 11,084,500.00 | H28: 0.00 | I28: 1,369,995.40
D29: 2019 | E29: 0.00 | F29: 0.00 | G29: 0.00 | H29: 0.00 | I29: 0.00
D30: 2020 | E30: 0.00 | F30: 0.00 | G30: 0.00 | H30: 0.00 | I30: 0.00
D31: 2021 | E31: 0.00 | F31: 0.00 | G31: 0.00 | H31: 0.00 | I31: 0.00
D32: 2022 | E32: 0.00 | F32: 0.00 | G32: 0.00 | H32: 0.00 | I32: 0.00
D33: 2023 | E33: 12,454,495.40 | F33: 0.00 | G33: 11,084,500.00 | H33: 0.00 | I33: 1,369,995.40
D34: 2024 | E34: 0.00 | F34: 0.00 | G34: 0.00 | H34: 0.00 | I34: 0.00
D35: 2025 | E35: =F35+G35+I35 -> 0.00 | F35: 0.00 | G35: 0.00 | H35: 0.00 | I35: 0.00
D36: 2026 | E36: =F36+G36+I36 -> 0.00 | F36: 0.00 | G36: 0.00 | H36: 0.00 | I36: 0.00
A37: 1.2. | B37: Основное мероприятие "Поддержка отрасли культуры" Подпрограммы "Государственное управление культурой, архивным делом и сохранение национальной самобытности" на 2019 - 2025 годы; региональный проект «Реализация приоритетных проектов в сфере культуры» (2024-2030) | C37: Мероприятие 1.1.1. "Комплектование библиотечного фонда МБУК «Усольская городская централизованная библиотечная система» подпрограммы 1 "Создание единого культурного пространства и развитие архивного дела в городе Усолье-Сибирское" на 2019-2026 | D37: Итого | E37: =F37+G37+I37 -> 2,346,120.37 | F37: =SUM(F38:F45) -> 1,242,994.84 | G37: =SUM(G38:G45) -> 534,500.26 | H37: 0.00 | I37: 568,625.27
D38: 2019 | E38: =F38+G38+I38 -> 75,661.00 | F38: 7,201.23 | G38: 58,623.77 | H38: 0.00 | I38: 9,836.00
D39: 2020 | E39: 17,854.00 | F39: 0.00 | G39: 15,800.00 | H39: 0.00 | I39: 2,054.00
D40: 2021 | E40: 380,572.98 | F40: 270,851.11 | G40: 97,099.00 | H40: 0.00 | I40: =G40/100*13 -> 12,622.87
D41: 2022 | E41: 522,270.79 | F41: 255,673.67 | G41: 85,226.32 | H41: 0.00 | I41: 181,370.80
D42: 2023 | E42: 462,690.80 | F42: 210,989.39 | G42: 70,330.61 | H42: 0.00 | I42: 181,370.80
D43: 2024 | E43: 414,370.80 | F43: 174,749.44 | G43: 58,250.56 | H43: 0.00 | I43: 181,370.80
D44: 2025 | E44: =F44+G44+I44 -> 233,300.00 | F44: 170,310.00 | G44: 62,990.00 | H44: 0.00 | I44: 0.00
D45: 2026 | E45: =F45+G45+I45 -> 239,400.00 | F45: 153,220.00 | G45: 86,180.00 | H45: 0.00 | I45: 0.00
A46: 1.3. | B46: Основное мероприятие "Восстановление (ремонт, реставрация, благоустройство) воинских захоронений на территории Иркутской области" Подпрограммы «Реализация единой государственной политики в сфере культуры» на 2019-2025 годы | C46: Основное мероприятие 1.13. "Восстановление (ремонт, реставрация, благоустройство) воинских захоронений" подпрограммы 1 "Создание единого культурного пространства и развитие архивного дела в городе Усолье-Сибирское" на 2019-2026 | D46: Итого | E46: 328,700.00 | F46: =SUM(F47:F52) -> 233,700.00 | G46: =SUM(G47:G52) -> 62,100.00 | H46: 0.00 | I46: =SUM(I47:I52) -> 32,900.00
D47: 2019 | E47: 0.00 | F47: 0.00 | G47: 0.00 | H47: 0.00 | I47: 0.00
D48: 2020 | E48: 328,700.00 | F48: 233,700.00 | G48: 62,100.00 | H48: 0.00 | I48: 32,900.00
D49: 2021 | E49: 0.00 | F49: 0.00 | G49: 0.00 | H49: 0.00 | I49: 0.00
D50: 2022 | E50: 0.00 | F50: 0.00 | G50: 0.00 | H50: 0.00 | I50: 0.00
D51: 2023 | E51: 0.00 | F51: 0.00 | G51: 0.00 | H51: 0.00 | I51: 0.00
D52: 2024 | E52: 0.00 | F52: 0.00 | G52: 0.00 | H52: 0.00 | I52: 0.00
D53: 2025 | E53: =F53+G53+I53 -> 0.00 | F53: 0.00 | G53: 0.00 | H53: 0.00 | I53: 0.00
D54: 2026 | E54: =F54+G54+I54 -> 0.00 | F54: 0.00 | G54: 0.00 | H54: 0.00 | I54: 0.00
A55: 1.4. | B55: Основное мероприятие "Оказание финансовой поддержки муниципальным образованиям Иркутской области в сфере культуры и архивного дела" на 2019 - 2025 годы Подпрограммы «Оказание финансовой поддержки муниципальным образованиям Иркутской области в сфере культуры и архивного дела" на 2019 - 2025 годы | C55: Основное мероприятие 1.15. "Благоустройство Мемориального комплекса им. Н.Ф.Ватутина в г.Усолье-Сибирское"подпрограммы 1 "Создание единого культурного пространства и развитие архивного дела в городе Усолье-Сибирское" на 2019-2026 | D55: Итого | E55: =F55+G55+I55 -> 2,000,000.00 | F55: =SUM(F56:F61) -> 0.00 | G55: =SUM(G56:G61) -> 2,000,000.00 | H55: 0.00 | I55: 0.00
D56: 2019 | E56: 0.00 | F56: 0.00 | G56: 0.00 | H56: 0.00 | I56: 0.00
D57: 2020 | E57: 2,000,000.00 | F57: 0.00 | G57: 2,000,000.00 | H57: 0.00 | I57: 0.00
D58: 2021 | E58: 0.00 | F58: 0.00 | G58: 0.00 | H58: 0.00 | I58: 0.00
D59: 2022 | E59: 0.00 | F59: 0.00 | G59: 0.00 | H59: 0.00 | I59: 0.00
D60: 2023 | E60: 0.00 | F60: 0.00 | G60: 0.00 | H60: 0.00 | I60: 0.00
D61: 2024 | E61: 0.00 | F61: 0.00 | G61: 0.00 | H61: 0.00 | I61: 0.00
D62: 2025 | E62: =F62+G62+I62 -> 0.00 | F62: 0.00 | G62: 0.00 | H62: 0.00 | I62: 0.00
D63: 2026 | E63: =F63+G63+I63 -> 0.00 | F63: 0.00 | G63: 0.00 | H63: 0.00 | I63: 0.00
A64: 1.5. | B64: Подпрограмма "Оказание финансовой поддержки муниципальным образованиям Иркутской области в сфере культуры и архивного дела" на 2019 - 2025 годы | C64: Мероприятие 1.14.3. «Реализация основных мероприятий по созданию модельной муниципальной библиотеки в рамках национального проекта «Культура» (региональный проект «Культурная среда») подпрограммы 1 "Создание единого культурного пространства и развитие архивного дела в городе Усолье-Сибирское" на 2019-2026 | D64: Итого | E64: =F64+G64+I64 -> 10,000,000.00 | F64: =SUM(F65:F70) -> 10,000,000.00 | G64: =SUM(G65:G70) -> 0.00 | H64: 0.00 | I64: 0.00
D65: 2019 | E65: 0.00 | F65: 0.00 | G65: 0.00 | H65: 0.00 | I65: 0.00
D66: 2020 | E66: 0.00 | F66: 0.00 | G66: 0.00 | H66: 0.00 | I66: 0.00
D67: 2021 | E67: 10,000,000.00 | F67: 10,000,000.00 | G67: 0.00 | H67: 0.00 | I67: 0.00
D68: 2022 | E68: 0.00 | F68: 0.00 | G68: 0.00 | H68: 0.00 | I68: 0.00
D69: 2023 | E69: 0.00 | F69: 0.00 | G69: 0.00 | H69: 0.00 | I69: 0.00
D70: 2024 | E70: 0.00 | F70: 0.00 | G70: 0.00 | H70: 0.00 | I70: 0.00
D71: 2025 | E71: =F71+G71+I71 -> 0.00 | F71: 0.00 | G71: 0.00 | H71: 0.00 | I71: 0.00
D72: 2026 | E72: =F72+G72+I72 -> 0.00 | F72: 0.00 | G72: 0.00 | H72: 0.00 | I72: 0.00
C73: Мероприятие 1.14.4. Развитие деятельности муниципальных модельных библиотек (в том числе в целях получения субсидий из областного бюджета) подпрограммы 1 "Создание единого культурного пространства и развитие архивного дела в городе Усолье-Сибирское" на 2019-2026 | D73: Итого | E73: =F73+G73+I73 -> 739,340.00 | F73: =SUM(F74:F79) -> 0.00 | G73: =SUM(G74:G79) -> 658,040.00 | H73: 0.00 | I73: 81,300.00
D74: 2019 | E74: 0.00 | F74: 0.00 | G74: 0.00 | H74: 0.00 | I74: 0.00
D75: 2020 | E75: 0.00 | F75: 0.00 | G75: 0.00 | H75: 0.00 | I75: 0.00
D76: 2021 | E76: 0.00 | F76: 0.00 | G76: 0.00 | H76: 0.00 | I76: 0.00
D77: 2022 | E77: 0.00 | F77: 0.00 | G77: 0.00 | H77: 0.00 | I77: 0.00
D78: 2023 | E78: 739,340.00 | F78: 0.00 | G78: 658,040.00 | H78: 0.00 | I78: 81,300.00
D79: 2024 | E79: 0.00 | F79: 0.00 | G79: 0.00 | H79: 0.00 | I79: 0.00
D80: 2025 | E80: =F80+G80+I80 -> 0.00 | F80: 0.00 | G80: 0.00 | H80: 0.00 | I80: 0.00
D81: 2026 | E81: =F81+G81+I81 -> 0.00 | F81: 0.00 | G81: 0.00 | H81: 0.00 | I81: 0.00
A82: 1.6. | B82: Региональный проект "Обеспечение качественно нового уровня развития инфраструктуры культуры" на 2019-2025 годы Подпрограммы "Оказание финансовой поддержки муниципальным образованиям Иркутской области в сфере культуры и архивного дела" на 2019 - 2025 годы; региональный проект "Обеспечение качественно нового уровня развития инфраструктуры культуры" (2024-2030) | C82: Основное мероприятие 1.18. «Техническое оснащение МБУК «Усольский историко-краеведческий музей» в рамках регионального проекта «Обеспечение качественно нового уровня развития инфраструктуры культуры («Культурная среда») (Иркутская область)" подпрограммы 1 "Создание единого культурного пространства и развитие архивного дела в городе Усолье-Сибирское" на 2019-2026 | D82: Итого | E82: =F82+G82+I82 -> 7,096,169.16 | F82: =SUM(F83:F88) -> 6,067,200.00 | G82: =SUM(G83:G88) -> 319,352.26 | H82: 0.00 | I82: 709,616.90
D83: 2019 | E83: 0.00 | F83: 0.00 | G83: 0.00 | H83: 0.00 | I83: 0.00
D84: 2020 | E84: 0.00 | F84: 0.00 | G84: 0.00 | H84: 0.00 | I84: 0.00
D85: 2021 | E85: 0.00 | F85: 0.00 | G85: 0.00 | H85: 0.00 | I85: 0.00
D86: 2022 | E86: 7,096,169.16 | F86: 6,067,200.00 | G86: 319,352.26 | H86: 0.00 | I86: 709,616.90
D87: 2023 | E87: 0.00 | F87: 0.00 | G87: 0.00 | H87: 0.00 | I87: 0.00
D88: 2024 | E88: 0.00 | F88: 0.00 | G88: 0.00 | H88: 0.00 | I88: 0.00
D89: 2025 | E89: =F89+G89+I89 -> 0.00 | F89: 0.00 | G89: 0.00 | H89: 0.00 | I89: 0.00
D90: 2026 | E90: =F90+G90+I90 -> 0.00 | F90: 0.00 | G90: 0.00 | H90: 0.00 | I90: 0.00
C91: Основное мероприятие 1.22. "Реализация мероприятий по оснащению домов культуры материальными ценностями в рамках областного конкурса на предоставление субсидий на развитие домов культуры" подпрограммы 1 "Создание единого культурного пространства и развитие архивного дела в городе Усолье-Сибирское" на 2019-2026 | D91: Итого | E91: =F91+G91+I91 -> 2,125,000.00 | F91: =SUM(F92:F97) -> 0.00 | G91: =SUM(G92:G97) -> 1,875,000.00 | H91: 0.00 | I91: 250,000.00
D92: 2019 | E92: 0.00 | F92: 0.00 | G92: 0.00 | H92: 0.00 | I92: 0.00
D93: 2020 | E93: 0.00 | F93: 0.00 | G93: 0.00 | H93: 0.00 | I93: 0.00
D94: 2021 | E94: 0.00 | F94: 0.00 | G94: 0.00 | H94: 0.00 | I94: 0.00
D95: 2022 | E95: 0.00 | F95: 0.00 | G95: 0.00 | H95: 0.00 | I95: 0.00
D96: 2023 | E96: 0.00 | F96: 0.00 | G96: 0.00 | H96: 0.00 | I96: 0.00
D97: 2024 | E97: 2,125,000.00 | F97: 0.00 | G97: 1,875,000.00 | H97: 0.00 | I97: 250,000.00
D98: 2025 | E98: =F98+G98+I98 -> 0.00 | F98: 0.00 | G98: 0.00 | H98: 0.00 | I98: 0.00
D99: 2026 | E99: =F99+G99+I99 -> 0.00 | F99: 0.00 | G99: 0.00 | H99: 0.00 | I99: 0.00
A100: 1.7. | B100: Региональный проект "Цифровизация услуг и формирование информационного пространства в сфере культуры на 2019 - 2024 годы Подпрограммы "Государственное управление культурой, архивным делом и сохранение национальной самобытности" на 2019 - 2025 годы | C100: Основное мероприятие 1.16. «Создание виртуального концертного зала в МБУ ДО «Детская музыкальная школа» в рамках национального проекта «Культура» (региональный проект «Цифровая культура») подпрограммы 1 "Создание единого культурного пространства и развитие архивного дела в городе Усолье-Сибирское" на 2019-2026 | D100: Итого | E100: =F100+G100+I100 -> 1,000,000.00 | F100: =SUM(F101:F106) -> 1,000,000.00 | G100: =SUM(G101:G106) -> 0.00 | H100: 0.00 | I100: 0.00
D101: 2019 | E101: 0.00 | F101: 0.00 | G101: 0.00 | H101: 0.00 | I101: 0.00
D102: 2020 | E102: 0.00 | F102: 0.00 | G102: 0.00 | H102: 0.00 | I102: 0.00
D103: 2021 | E103: 1,000,000.00 | F103: 1,000,000.00 | G103: 0.00 | H103: 0.00 | I103: 0.00
D104: 2022 | E104: 0.00 | F104: 0.00 | G104: 0.00 | H104: 0.00 | I104: 0.00
D105: 2023 | E105: 0.00 | F105: 0.00 | G105: 0.00 | H105: 0.00 | I105: 0.00
D106: 2024 | E106: 0.00 | F106: 0.00 | G106: 0.00 | H106: 0.00 | I106: 0.00
D107: 2025 | E107: =F107+G107+I107 -> 0.00 | F107: 0.00 | G107: 0.00 | H107: 0.00 | I107: 0.00
D108: 2026 | E108: =F108+G108+I108 -> 0.00 | F108: 0.00 | G108: 0.00 | H108: 0.00 | I108: 0.00
A109: 1.8. | B109: Региональный проект «Развитие инфраструктуры и модернизация государственных и муниципальных учреждений культуры» | C109: Основное мероприятие 1.25. «Восстановление мемориальных сооружений и объектов, увековечивающих память погибших при защите Отечества» подпрограммы 1 "Создание единого культурного пространства и развитие архивного дела в городе Усолье-Сибирское" на 2019-2026 | D109: Итого | E109: =F109+G109+I109 -> 7,508,000.00 | F109: =SUM(F110:F115) -> 0.00 | G109: =SUM(G110:G115) -> 7,508,000.00 | H109: 0.00 | I109: 0.00
D110: 2019 | E110: 0.00 | F110: 0.00 | G110: 0.00 | H110: 0.00 | I110: 0.00
D111: 2020 | E111: 0.00 | F111: 0.00 | G111: 0.00 | H111: 0.00 | I111: 0.00
D112: 2021 | E112: 0.00 | F112: 0.00 | G112: 0.00 | H112: 0.00 | I112: 0.00
D113: 2022 | E113: 0.00 | F113: 0.00 | G113: 0.00 | H113: 0.00 | I113: 0.00
D114: 2023 | E114: 0.00 | F114: 0.00 | G114: 0.00 | H114: 0.00 | I114: 0.00
D115: 2024 | E115: 7,508,000.00 | F115: 0.00 | G115: 7,508,000.00 | H115: 0.00 | I115: 0.00
D116: 2025 | E116: =F116+G116+I116 -> 0.00 | F116: 0.00 | G116: 0.00 | H116: 0.00 | I116: 0.00
D117: 2026 | E117: =F117+G117+I117 -> 0.00 | F117: 0.00 | G117: 0.00 | H117: 0.00 | I117: 0.00
A118: Всего: | D118: Итого | E118: =F118+G118+I118 -> 80,914,708.75 | F118: =SUM(F119:F126) -> 18,543,894.84 | G118: =SUM(G119:G126) -> 54,778,992.52 | H118: =SUM(H119:H124) -> 0.00 | I118: =SUM(I119:I126) -> 7,591,821.39
D119: 2019 | E119: =F119+G119+I119 -> 16,373,661.00 | F119: =F11+F20+F38+F47+F56+F65+F101 -> 7,201.23 | G119: =G11+G20+G38+G47+G56+G65+G101 -> 14,137,923.77 | H119: =H11+H20+H38+H47+H56+H65+H101 -> 0.00 | I119: =I11+I20+I38+I47+I56+I65+I101+I83 -> 2,228,536.00
D120: 2020 | E120: =F120+G120+I120 -> 21,446,737.82 | F120: =F12+F21+F39+F48+F57 -> 233,700.00 | G120: =G12+G21+G39+G48+G57 -> 18,736,100.00 | H120: =H12+H21+H39+H48+H57 -> 0.00 | I120: =I12+I21+I39+I48+I57+I66+I102+I84 -> 2,476,937.82
D121: 2021 | E121: 11,380,572.98 | F121: =F13+F22+F40+F49+F58+F67+F103 -> 11,270,851.11 | G121: =G13+G22+G40+G49+G58+G67+G103 -> 97,099.00 | H121: =H13+H22+H40+H49+H58+H67+H103 -> 0.00 | I121: =I13+I22+I40+I49+I58+I67+I103+I85 -> 12,622.87
D122: 2022 | E122: 7,618,439.95 | F122: =F14+F23+F41+F50+F59+F86 -> 6,322,873.67 | G122: =G14+G23+G41+G50+G59+G86 -> 404,578.58 | H122: =H14+H23+H41+H50+H59 -> 0.00 | I122: =I14+I23+I41+I50+I59+I68+I104+I86 -> 890,987.70
D123: 2023 | E123: =F123+G123+I123 -> 13,575,226.20 | F123: =F15+F24+F42+F51+F60+F33 -> 210,989.39 | G123: =G15+G24+G42+G51+G60+G33+G78 -> 11,812,870.61 | H123: =H15+H24+H42+H51+H60+H33 -> 0.00 | I123: =I15+I24+I42+I51+I60+I33 -> 1,551,366.20
D124: 2024 | E124: =F124+G124+I124 -> 10,047,370.80 | F124: =F16+F25+F43+F52+F61 -> 174,749.44 | G124: =G16+G25+G43+G52+G61+G97+G115 -> 9,441,250.56 | H124: =H16+H25+H43+H52+H61 -> 0.00 | I124: =I16+I25+I43+I52+I61+I70+I106+I88+I97 -> 431,370.80
D125: 2025 | E125: =F125+G125+I125 -> 233,300.00 | F125: =F17+F26+F44+F53+F62 -> 170,310.00 | G125: =G17+G26+G44+G53+G62 -> 62,990.00 | H125: =H17+H26+H44+H53+H62 -> 0.00 | I125: =I17+I26+I44+I53+I62+I71+I107+I89 -> 0.00
D126: 2026 | E126: =-E18+E27+E36+E45+E54+E63+E72+E81+E90+E108 -> 239,400.00 | F126: =-F18+F27+F36+F45+F54+F63+F72+F81+F90+F108 -> 153,220.00 | G126: 86,180.00 | H126: 0.00 | I126: 0.00
A127: 2 | B127: Государственная программа Иркутской области «Экономическое развитие и инновационная экономика» на 2019 - 2025 годы, утвержденная постановлением Правительства Иркутской области от 12.11.2018 г. № 828-пп; Государственная программа Иркутской области «Экономическое развитие и инновационная экономика» на 2024-2030 годы, утвержденная постановлением Правительства Иркутской области от 13.11.2023 г. № 1005-пп
A128: 2.1. | B128: Основное мероприятие "Обеспечение эффективного управления экономическим развитием Иркутской области" на 2019 - 2025 годы Подпрограммы "Государственная политика в сфере экономического развития Иркутской области" на 2019 - 2025 годы; ведомственный проект "Социально-экономическое развитие муниципальных образований Иркутской области" (2024-2023 годы) мероприятие (результат): Оказана поддержка органам местного самоуправления муниципальных образований Иркутской области в целях реализации инициативных проектов | C128: Основное мероприятие 1.8. "Издание книги «Город, рожденный у соли» (очерки истории города Усолье-Сибирское 1669-1945 гг.) Шаманского С.В. к 350-летию города Усолье-Сибирское для МБУК «Усольская городская централизованная библиотечная система» (Реализация мероприятий перечня проектов народных инициатив)" подпрограммы 1 "Создание единого культурного пространства и развитие архивного дела в городе Усолье-Сибирское" на 2019-2026 | D128: Итого | E128: =F128+G128+I128 -> 379,305.64 | F128: =SUM(F129:F134) -> 0.00 | G128: =SUM(G129:G134) -> 309,946.19 | H128: 0.00 | I128: 69,359.45
D129: 2019 | E129: =F129+G129+I129 -> 379,305.64 | F129: 0.00 | G129: 309,946.19 | H129: 0.00 | I129: 69,359.45
D130: 2020 | E130: 0.00 | F130: 0.00 | G130: 0.00 | H130: 0.00 | I130: 0.00
D131: 2021 | E131: 0.00 | F131: 0.00 | G131: 0.00 | H131: 0.00 | I131: 0.00
D132: 2022 | E132: 0.00 | F132: 0.00 | G132: 0.00 | H132: 0.00 | I132: 0.00
D133: 2023 | E133: 0.00 | F133: 0.00 | G133: 0.00 | H133: 0.00 | I133: 0.00
D134: 2024 | E134: 0.00 | F134: 0.00 | G134: 0.00 | H134: 0.00 | I134: 0.00
D135: 2025 | E135: =F135+G135+I135 -> 0.00 | F135: 0.00 | G135: 0.00 | H135: 0.00 | I135: 0.00
D136: 2026 | E136: =F136+G136+I136 -> 0.00 | F136: 0.00 | G136: 0.00 | H136: 0.00 | I136: 0.00
C137: Основное мероприятие 1.9. "Благоустройство территории города (приобретение и установка стелы к 350-летию города Усолье-Сибирское) (Реализация мероприятий перечня проектов народных инициатив)" подпрограммы 1 "Создание единого культурного пространства и развитие архивного дела в городе Усолье-Сибирское" на 2019-2026 | D137: Итого | E137: =F137+G137+I137+H137 -> 2,056,975.00 | F137: =SUM(F138:F143) -> 0.00 | G137: =SUM(G138:G143) -> 1,087,499.96 | H137: 806,975.00 | I137: 162,500.04
D138: 2019 | E138: =F138+G138+I138+H138 -> 2,056,975.00 | F138: 0.00 | G138: 1,087,499.96 | H138: 806,975.00 | I138: =162500.04 -> 162,500.04
D139: 2020 | E139: 0.00 | F139: 0.00 | G139: 0.00 | H139: 0.00 | I139: 0.00
D140: 2021 | E140: 0.00 | F140: 0.00 | G140: 0.00 | H140: 0.00 | I140: 0.00
D141: 2022 | E141: 0.00 | F141: 0.00 | G141: 0.00 | H141: 0.00 | I141: 0.00
D142: 2023 | E142: 0.00 | F142: 0.00 | G142: 0.00 | H142: 0.00 | I142: 0.00
D143: 2024 | E143: 0.00 | F143: 0.00 | G143: 0.00 | H143: 0.00 | I143: 0.00
D144: 2025 | E144: 0.00 | F144: 0.00 | G144: 0.00 | H144: 0.00 | I144: 0.00
D145: 2026 | E145: 0.00 | F145: 0.00 | G145: 0.00 | H145: 0.00 | I145: 0.00
C146: Основное мероприятие 1.17. «Благоустройство территории Нижнего парка» (Реализация мероприятий перечня народных инициатив) подпрограммы 1 "Создание единого культурного пространства и развитие архивного дела в городе Усолье-Сибирское" на 2019-2026 | D146: Итого | E146: =F146+G146+I146 -> 943,534.69 | F146: =SUM(F147:F152) -> 0.00 | G146: =SUM(G147:G152) -> 849,181.22 | H146: 0.00 | I146: 94,353.47
D147: 2019 | E147: 0.00 | F147: 0.00 | G147: 0.00 | H147: 0.00 | I147: 0.00
D148: 2020 | E148: 0.00 | F148: 0.00 | G148: 0.00 | H148: 0.00 | I148: 0.00
D149: 2021 | E149: =F149+G149+I149 -> 943,534.69 | F149: 0.00 | G149: 849,181.22 | H149: 0.00 | I149: 94,353.47
D150: 2022 | E150: 0.00 | F150: 0.00 | G150: 0.00 | H150: 0.00 | I150: 0.00
D151: 2023 | E151: 0.00 | F151: 0.00 | G151: 0.00 | H151: 0.00 | I151: 0.00
D152: 2024 | E152: 0.00 | F152: 0.00 | G152: 0.00 | H152: 0.00 | I152: 0.00
D153: 2025 | E153: =F153+G153+I153 -> 0.00 | F153: 0.00 | G153: 0.00 | H153: 0.00 | I153: 0.00
D154: 2026 | E154: =F154+G154+I154 -> 0.00 | F154: 0.00 | G154: 0.00 | H154: 0.00 | I154: 0.00
C155: Основное мероприятие 1.20. «Переоборудование механической системы сцены муниципального бюджетного учреждения культуры «Дом культуры «Мир» в рамках реализации инициативных проектов, выдвигаемых для получения финансовой поддержки из бюджета Иркутской области» подпрограммы 1 "Создание единого культурного пространства и развитие архивного дела в городе Усолье-Сибирское" на 2019-2025 подпрограммы 1 "Создание единого культурного пространства и развитие архивного дела в городе Усолье-Сибирское" на 2019-2026 | D155: Итого | E155: =F155+G155+I155+H155 -> 2,000,000.00 | F155: =SUM(F156:F161) -> 0.00 | G155: =SUM(G156:G161) -> 1,780,000.00 | H155: 200,000.00 | I155: 20,000.00
D156: 2019 | E156: =F156+G156+I156+H156 -> 0.00 | F156: 0.00 | G156: 0.00 | H156: 0.00 | I156: 0.00
D157: 2020 | E157: 0.00 | F157: 0.00 | G157: 0.00 | H157: 0.00 | I157: 0.00
D158: 2021 | E158: 0.00 | F158: 0.00 | G158: 0.00 | H158: 0.00 | I158: 0.00
D159: 2022 | E159: 0.00 | F159: 0.00 | G159: 0.00 | H159: 0.00 | I159: 0.00
D160: 2023 | E160: 2,000,000.00 | F160: 0.00 | G160: 1,780,000.00 | H160: 200,000.00 | I160: 20,000.00
D161: 2024 | E161: 0.00 | F161: 0.00 | G161: 0.00 | H161: 0.00 | I161: 0.00
D162: 2025 | E162: 0.00 | F162: 0.00 | G162: 0.00 | H162: 0.00 | I162: 0.00
D163: 2026 | E163: 0.00 | F163: 0.00 | G163: 0.00 | H163: 0.00 | I163: 0.00
C164: Основное мероприятие 1.21. Твой взгляд (МБКДУ «Дворец культуры») в рамках реализации инициативных проектов, выдвигаемых для получения финансовой поддержки из бюджета Иркутской области подпрограммы 1 "Создание единого культурного пространства и развитие архивного дела в городе Усолье-Сибирское" на 2019-2026 | D164: Итого | E164: =F164+G164+I164+H164 -> 1,924,900.00 | F164: =SUM(F165:F170) -> 0.00 | G164: =SUM(G165:G170) -> 1,713,161.00 | H164: 200,000.00 | I164: 11,739.00
D165: 2019 | E165: =F165+G165+I165+H165 -> 0.00 | F165: 0.00 | G165: 0.00 | H165: 0.00 | I165: 0.00
D166: 2020 | E166: 0.00 | F166: 0.00 | G166: 0.00 | H166: 0.00 | I166: 0.00
D167: 2021 | E167: 0.00 | F167: 0.00 | G167: 0.00 | H167: 0.00 | I167: 0.00
D168: 2022 | E168: 0.00 | F168: 0.00 | G168: 0.00 | H168: 0.00 | I168: 0.00
D169: 2023 | E169: 1,924,900.00 | F169: 0.00 | G169: 1,713,161.00 | H169: 200,000.00 | I169: 11,739.00
D170: 2024 | E170: 0.00 | F170: 0.00 | G170: 0.00 | H170: 0.00 | I170: 0.00
D171: 2025 | E171: 0.00 | F171: 0.00 | G171: 0.00 | H171: 0.00 | I171: 0.00
D172: 2026 | E172: 0.00 | F172: 0.00 | G172: 0.00 | H172: 0.00 | I172: 0.00
C173: Основное мероприятие 1.23. «Музей – визитная карточка города Усолье-Сибирское» в рамках реализации инициативных проектов, выдвигаемых для получения финансовой поддержки из бюджета Иркутской области» подпрограммы 1 "Создание единого культурного пространства и развитие архивного дела в городе Усолье-Сибирское" на 2019-2026 | D173: Итого | E173: =F173+G173+I173+H173 -> 2,000,000.00 | F173: =SUM(F174:F179) -> 0.00 | G173: =SUM(G174:G179) -> 1,780,000.00 | H173: 200,000.00 | I173: 20,000.00
D174: 2019 | E174: =F174+G174+I174+H174 -> 0.00 | F174: 0.00 | G174: 0.00 | H174: 0.00 | I174: 0.00
D175: 2020 | E175: 0.00 | F175: 0.00 | G175: 0.00 | H175: 0.00 | I175: 0.00
D176: 2021 | E176: 0.00 | F176: 0.00 | G176: 0.00 | H176: 0.00 | I176: 0.00
D177: 2022 | E177: 0.00 | F177: 0.00 | G177: 0.00 | H177: 0.00 | I177: 0.00
D178: 2023 | E178: 0.00 | F178: 0.00 | G178: 0.00 | H178: 0.00 | I178: 0.00
D179: 2024 | E179: 2,000,000.00 | F179: 0.00 | G179: 1,780,000.00 | H179: 200,000.00 | I179: 20,000.00
D180: 2025 | E180: 0.00 | F180: 0.00 | G180: 0.00 | H180: 0.00 | I180: 0.00
D181: 2026 | E181: 0.00 | F181: 0.00 | G181: 0.00 | H181: 0.00 | I181: 0.00
C182: Основное мероприятие 1.24. «Твоя сцена» (МБКДУ «Дворец культуры») в рамках реализации инициативных проектов, выдвигаемых для получения финансовой поддержки из бюджета Иркутской области» подпрограммы 1 "Создание единого культурного пространства и развитие архивного дела в городе Усолье-Сибирское" на 2019-2026 | D182: Итого | E182: =F182+G182+I182+H182 -> 2,350,800.00 | F182: =SUM(F183:F188) -> 0.00 | G182: =SUM(G183:G188) -> 1,997,800.00 | H182: 353,000.00 | I182: 0.00
D183: 2019 | E183: =F183+G183+I183+H183 -> 0.00 | F183: 0.00 | G183: 0.00 | H183: 0.00 | I183: 0.00
D184: 2020 | E184: 0.00 | F184: 0.00 | G184: 0.00 | H184: 0.00 | I184: 0.00
D185: 2021 | E185: 0.00 | F185: 0.00 | G185: 0.00 | H185: 0.00 | I185: 0.00
D186: 2022 | E186: 0.00 | F186: 0.00 | G186: 0.00 | H186: 0.00 | I186: 0.00
D187: 2023 | E187: 0.00 | F187: 0.00 | G187: 0.00 | H187: 0.00 | I187: 0.00
D188: 2024 | E188: 2,350,800.00 | F188: 0.00 | G188: 1,997,800.00 | H188: 353,000.00 | I188: 0.00
D189: 2025 | E189: 0.00 | F189: 0.00 | G189: 0.00 | H189: 0.00 | I189: 0.00
D190: 2026 | E190: 0.00 | F190: 0.00 | G190: 0.00 | H190: 0.00 | I190: 0.00
A191: Всего: | D191: Итого | E191: =F191+G191+I191+H191 -> 11,623,776.33 | F191: =F129+F138 -> 0.00 | G191: =SUM(G192:G199) -> 9,517,588.37 | H191: =SUM(H192:H199) -> 1,759,975.00 | I191: =SUM(I192:I199) -> 346,212.96
D192: 2019 | E192: =F192+G192+I192+H192 -> 2,436,280.64 | F192: =F129+F138 -> 0.00 | G192: 1,397,446.15 | H192: 806,975.00 | I192: 231,859.49
D193: 2020 | E193: 0.00 | F193: 0.00 | G193: 0.00 | H193: 0.00 | I193: 0.00
D194: 2021 | E194: 943,534.69 | F194: =F131+F149 -> 0.00 | G194: =G131+G149+G140 -> 849,181.22 | H194: =H131+H149+H140 -> 0.00 | I194: =I131+I149 -> 94,353.47
D195: 2022 | E195: 0.00 | F195: =F132+F141 -> 0.00 | G195: =G132+G141 -> 0.00 | H195: =H132+H141 -> 0.00 | I195: =I132+I141 -> 0.00
D196: 2023 | E196: 3,893,161.00 | F196: =F133+F142 -> 0.00 | G196: =G133+G142+G169+G160 -> 3,493,161.00 | H196: =H133+H142+H169+H160 -> 400,000.00 | I196: =I133+I142 -> 0.00
D197: 2024 | E197: 4,350,800.00 | F197: =F134+F143 -> 0.00 | G197: =G134+G143+G188+G179 -> 3,777,800.00 | H197: =H134+H143+H188+H179 -> 553,000.00 | I197: =I179+I170 -> 20,000.00
D198: 2025 | E198: 0.00 | F198: =F135+F144 -> 0.00 | G198: =G135+G144 -> 0.00 | H198: =H135+H144 -> 0.00 | I198: 0.00
D199: 2026 | E199: 0.00 | F199: =F136+F145 -> 0.00 | G199: =G136+G145 -> 0.00 | H199: =H136+H145 -> 0.00 | I199: 0.00
A200: Подпрограмма 1 «Создание единого культурного пространства и развитие архивного дела в городе Усолье-Сибирское» на 2019-2026 годы | D200: Итого | E200: =F200+G200+I200+H200 -> 92,538,485.08 | F200: =F201+F202+F203+F204+F205+F206+F207+F208 -> 18,543,894.84 | G200: =G201+G202+G203+G204+G205+G206+G207+G208 -> 64,296,580.89 | H200: =H201+H202+H203+H204+H205+H206+H207+H208 -> 1,759,975.00 | I200: =I201+I202+I203+I204+I205+I206+I207+I208 -> 7,938,034.35
D201: 2019 | E201: 18,809,941.64 | F201: =F119+F192 -> 7,201.23 | G201: 15,535,369.92 | H201: 806,975.00 | I201: 2,460,395.49
D202: 2020 | E202: 21,446,737.82 | F202: 233,700.00 | G202: 18,736,100.00 | H202: 0.00 | I202: 2,476,937.82
D203: 2021 | E203: 12,324,107.67 | F203: 11,270,851.11 | G203: 946,280.22 | H203: 0.00 | I203: 106,976.34
... 15 more rows
